fUST/lending_fUST_20251117
["ID","MTS","AMOUNT","RATE_DAILY","PERIOD"]
[394212807,1763383840202,-435.59980476,0.00015373,2]
[394212809,1763383840212,-158.85384484,0.00015373,2]
[394212811,1763383840221,-500.0,0.00015373,2]
[394212813,1763383840230,-503.85554989,0.00015373,2]
[394212815,1763383840240,-500.0,0.00015373,2]
[394212817,1763383840249,-500.0,0.00015373,2]
[394212819,1763383840260,-500.0,0.00015373,2]
[394212821,1763383840269,-500.0,0.00015373,2]
[394212823,1763383840279,-500.0,0.00015373,2]
[394212825,1763383840288,-445.08248483,0.00015373,2]
[394212827,1763383840297,-500.0,0.00015373,2]
[394212829,1763383840307,-500.0,0.00015373,2]
[394212831,1763383840316,-507.23857365,0.00015373,2]
[394212833,1763383840324,-500.0,0.00015373,2]
[394212835,1763383840333,-182.75279002,0.00015373,2]
[394212837,1763383840343,-500.0,0.00015373,2]
[394212839,1763383840352,-501.72444069,0.00015373,2]
[394212841,1763383840361,-500.0,0.00015373,2]
[394212843,1763383840370,-502.73202336,0.00015373,2]
[394212845,1763383840379,-162.71889815,0.00015373,2]
[394212847,1763383840388,-500.0,0.00015515,2]
[394212849,1763383840397,-1685.90415884,0.00015616,2]
[394212851,1763383840406,-2000.0,0.00015616,2]
[394212853,1763383840415,-7482.39652982,0.00015722,2]
[394212855,1763383840424,-225.04205897,0.00015723,2]
[394212857,1763383840434,-720.0,0.0001578,2]
[394212858,1763383840443,-500.0,0.00015789,2]
[394212859,1763383840452,-2000.0,0.00015816,2]
[394212860,1763383840470,-1135.24857012,0.00015821,2]
[394212861,1763383840481,-260.0,0.00015905,2]
[394212862,1763383840490,-1000.0,0.00015921,2]
[394212863,1763383840499,-1000.0,0.00015921,2]
[394212864,1763383840508,-506.86742327,0.00015921,2]
[394212865,1763383840518,-1000.0,0.00015921,2]
[394212867,1763383840527,-501.42486407,0.00015921,2]
[394212880,1763383840637,-1000.0,0.00015921,2]
[394212882,1763383840647,-606.11024176,0.00015921,2]
[394212884,1763383840656,-164.0898945,0.00015921,2]
[394212886,1763383840665,-500.0,0.00016063,2]
[394212888,1763383840674,-2500.0,0.00016164,2]
[394212890,1763383840686,-1600.0,0.00016164,2]
[394212892,1763383840695,-500.0,0.00016337,2]
[394212894,1763383840704,-7482.39652982,0.00016338,2]
[394212896,1763383840713,-2355.51592409,0.00016364,2]
[394212898,1763383840722,-626.360968,0.00016438,2]
[394212900,1763383840731,-626.360968,0.00016438,2]
[394212902,1763383840740,-626.360968,0.00016438,2]
[394212904,1763383840749,-626.360968,0.00016438,2]
[394212906,1763383840759,-626.360968,0.00016438,2]
[394212908,1763383840767,-626.360968,0.00016438,2]
[394212910,1763383840776,-626.360968,0.00016438,2]
[394212912,1763383840785,-626.360968,0.00016438,2]
[394212914,1763383840799,-626.360968,0.00016438,2]
[394212917,1763383840809,-626.360968,0.00016438,2]
[394212918,1763383840819,-626.360968,0.00016438,2]
[394212920,1763383840828,-626.360968,0.00016438,2]
[394212923,1763383840841,-626.360968,0.00016438,2]
[394212925,1763383840851,-626.360968,0.00016438,2]
[394212926,1763383840860,-626.360968,0.00016438,2]
[394212928,1763383840870,-626.360968,0.00016438,2]
[394212930,1763383840879,-360.0,0.00016453,2]
[394212932,1763383840888,-1500.0,0.00016468,2]
[394212934,1763383840897,-1004.37558909,0.00016468,2]
[394212936,1763383840906,-1016.64132678,0.00016468,2]
[394212938,1763383840915,-541.04800509,0.00016468,2]
[394212940,1763383840924,-507.90955875,0.00016473,2]
[394212943,1763383840936,-501.96334487,0.00016473,2]
[394212945,1763383840945,-502.37853821,0.00016473,2]
[394212947,1763383840955,-500.0,0.00016473,2]
[394212949,1763383840963,-500.0,0.00016473,2]
[394212951,1763383840972,-500.0,0.00016611,2]
[394212953,1763383840981,-587.0,0.00016634,2]
[394212954,1763383840990,-2351.0,0.00016635,2]
[394212957,1763383841000,-2351.0,0.00016645,2]
[394212959,1763383841010,-3000.0,0.00016712,2]
[394212960,1763383841019,-500.0,0.00016885,2]
[394212963,1763383841028,-460.0,0.00017001,2]
[394212965,1763383841037,-2000.0,0.00017016,2]
[394212966,1763383841046,-500.81735696,0.00017021,2]
[394212969,1763383841055,-500.0,0.00017159,2]
[394212971,1763383841065,-477.42487773,0.0001726,2]
[394212973,1763383841075,-976.52244031,0.0001726,2]
[394212975,1763383841084,-864.0,0.00017358,2]
[394212977,1763383841093,-500.0,0.00017433,2]
[394212979,1763383841102,-1135.24857012,0.00017489,2]
[394212981,1763383841111,-560.0,0.00017549,2]
[394212983,1763383841120,-1931.38695596,0.00017564,2]
[394212985,1763383841130,-500.0,0.00017707,2]
[394212987,1763383841139,-259.37050865,0.00017723,2]
[394212989,1763383841148,-395.03358643,0.00017981,2]
[394212991,1763383841157,-660.0,0.00018097,2]
[394212993,1763383841169,-823.0,0.00018226,2]
[394212995,1763383841179,-712.0,0.00018228,2]
[394212997,1763383841188,-1114.0,0.00018309,2]
[394212999,1763383841197,-760.0,0.00018645,2]
[394213001,1763383841206,-7340.77376219,0.00018846,2]
[394213003,1763383841217,-302.48582854,0.000189,2]
[394213005,1763383841226,-302.48582854,0.00019089,2]
[394213007,1763383841236,-1000.0,0.00019094,2]
[394213009,1763383841246,-1135.24857012,0.00019157,2]
[394213011,1763383841255,-860.0,0.00019193,2]
[394213013,1763383841265,-4593.02845099,0.00019224,2]
[394213015,1763383841274,-151.0,0.00019224,2]
[394213017,1763383841283,-151.0,0.00019224,2]
[394213019,1763383841292,-165.74880417,0.00019224,2]
[394213021,1763383841301,-500.0,0.00019224,2]
[394213023,1763383841310,-500.0,0.00019224,2]
[394213025,1763383841319,-500.0,0.00019224,2]
[394213026,1763383841328,-500.0,0.00019224,2]
[394213029,1763383841337,-500.0,0.00019224,2]
[394213031,1763383841346,-500.0,0.00019224,2]
[394213033,1763383841356,-510.41686513,0.00019224,2]
[394213035,1763383841365,-1000.0,0.00019224,2]
[394213037,1763383841374,-1000.0,0.00019224,2]
[394213038,1763383841383,-1000.0,0.00019224,2]
[394213041,1763383841393,-1000.0,0.00019224,2]
[394213042,1763383841402,-1000.0,0.00019224,2]
[394213045,1763383841411,-1000.0,0.00019224,2]
[394213047,1763383841420,-1000.0,0.00019224,2]
[394213048,1763383841429,-1000.0,0.00019224,2]
[394213050,1763383841438,-1000.0,0.00019224,2]
[394213052,1763383841447,-1000.0,0.00019224,2]
[394213054,1763383841456,-845.54684014,0.00019224,2]
[394213056,1763383841466,-208.74819662,0.00019278,2]
[394213059,1763383841475,-4762.97050368,0.00019279,2]
[394213060,1763383841484,-4939.20041232,0.00019334,2]
[394213063,1763383841493,-5121.95082757,0.00019389,2]
[394213064,1763383841502,-5311.46300819,0.00019444,2]
[394213067,1763383841511,-5507.9871395,0.00019499,2]
[394213068,1763383841520,-201.07318262,0.00019537,2]
[394213071,1763383841530,-1387.68437399,0.00019554,2]
[394213072,1763383841539,-293.69895832,0.00019723,2]
[394213074,1763383841548,-960.0,0.00019741,2]
[394213077,1763383841557,-1152.0,0.00019971,2]
[394213078,1763383841566,-1152.0,0.0002,2]
[394213081,1763383841575,-4000.0,0.0002,2]
[394213083,1763383841585,-2000.0,0.0002,7]
[394213084,1763383841594,-1060.0,0.00020289,2]
[394213087,1763383841603,-1000.0,0.000205,2]
[394213088,1763383841612,-1000.0,0.000205,2]
[394213091,1763383841621,-1000.0,0.000205,2]
[394213093,1763383841630,-1000.0,0.000205,2]
[394213095,1763383841639,-1000.0,0.000205,2]
[394213096,1763383841648,-596.1698125,0.00020756,2]
[394213099,1763383841657,-1135.24857012,0.00020826,2]
[394213101,1763383841667,-1160.0,0.00020837,2]
[394213103,1763383841676,-1000.0,0.00021004,2]
[394213104,1763383841690,-244.0,0.00021004,2]
[394213106,1763383841699,-1260.0,0.00021385,2]
[394213109,1763383841708,-804.2927305,0.00021439,2]
[394213111,1763383841718,-328.027408,0.00021723,2]
[394213113,1763383841727,-2000.0,0.00021765,7]
[394213114,1763383841736,-1613.0,0.00021883,2]
[394213116,1763383841746,-1073.1056625,0.00021892,2]
[394213118,1763383841755,-12962.04999538,0.000219,2]
[394213120,1763383841765,-500.0,0.00021917,2]
[394213123,1763383841774,-151.0,0.00021918,7]
[394213124,1763383841783,-151.0,0.00021918,7]
[394213127,1763383841793,-151.0,0.00021918,7]
[394213128,1763383841802,-151.0,0.00021918,7]
[394213129,1763383841810,-300.0,0.00021918,2]
[394213130,1763383841819,-150.0,0.00021918,2]
[394213131,1763383841828,-725.19814475,0.00021932,2]
[394213132,1763383841837,-484.69,0.00022,7]
[394213133,1763383841846,-28260.27,0.00022,7]
[394213134,1763383841855,-400.67432439,0.00022,7]
[394213135,1763383841864,-480.6,0.000221,14]
[394213136,1763383841873,-300.0,0.00022466,2]
[394213137,1763383841882,-1135.24857012,0.00022494,2]
[394213138,1763383841891,-272.0,0.00022675,2]
[394213139,1763383841899,-701.53166973,0.0002274,2]
[394213140,1763383841910,-316.0,0.0002292,2]
[394213141,1763383841919,-500.0,0.00023013,2]
[394213142,1763383841928,-450.0,0.00023014,2]
[394213143,1763383841936,-260.56701513,0.00023025,2]
[394213144,1763383841946,-1907.7434,0.00023028,2]
[394213145,1763383841955,-1000.0,0.00023104,20]
[394213146,1763383841963,-492.0,0.00023104,20]
[394213147,1763383841972,-378.0,0.00023148,2]
[394213148,1763383841981,-168.0,0.00023187,2]
[394213149,1763383841989,-168.0,0.00023264,2]
[394213150,1763383841998,-168.0,0.00023288,2]
[394213151,1763383842006,-1809.65864362,0.0002334,2]
[394213152,1763383842015,-168.0,0.00023512,2]
[394213153,1763383842024,-168.0,0.0002352,2]
[394213154,1763383842033,-2000.0,0.00023529,7]
[394213155,1763383842042,-168.0,0.00023688,2]
[394213156,1763383842051,-362.35585767,0.00023723,2]
[394213158,1763383842059,-3607.54050589,0.00023832,2]
[394213160,1763383842068,-296.21429448,0.00023887,2]
[394213162,1763383842077,-360.60131738,0.00023887,2]
[394213163,1763383842086,-635.79968384,0.00023887,2]
[394213165,1763383842095,-168.0,0.00023931,2]
[394213168,1763383842104,-7340.77376219,0.00023935,2]
[394213177,1763383842177,-168.0,0.00023954,2]
[394213179,1763383842195,-2258.0,0.00023977,2]
[394213181,1763383842204,-168.0,0.00024037,2]
[394213183,1763383842214,-3607.54050589,0.00024101,2]
[394213185,1763383842223,-500.0,0.00024109,2]
[394213187,1763383842232,-1135.24857012,0.00024163,2]
[394213189,1763383842243,-3607.54050589,0.00024165,2]
[394213191,1763383842253,-160.0,0.00024384,2]
[394213193,1763383842263,-400.67432439,0.00024384,2]
[394213195,1763383842272,-160.0,0.00024384,2]
[394213197,1763383842282,-3607.54050591,0.00024411,2]
[394213199,1763383842291,-519.979803,0.00024415,2]
[394213201,1763383842300,-519.979803,0.00024415,2]
[394213203,1763383842309,-519.979803,0.00024415,2]
[394213205,1763383842319,-151.83738,0.00024415,7]
[394213208,1763383842329,-519.979803,0.00024415,2]
[394213209,1763383842337,-151.83738,0.00024415,7]
[394213211,1763383842347,-151.83738,0.00024415,7]
[394213214,1763383842356,-151.83738,0.00024415,7]
[394213215,1763383842365,-274.647791,0.00024415,7]
[394213218,1763383842375,-274.647791,0.00024415,7]
[394213219,1763383842385,-274.647791,0.00024415,7]
[394213222,1763383842395,-274.647791,0.00024415,7]
[394213224,1763383842405,-168.0,0.0002459,2]
[394213226,1763383842414,-168.0,0.00024627,2]
[394213228,1763383842424,-380.0,0.00024658,2]
[394213230,1763383842435,-168.0,0.00024796,2]
[394213232,1763383842445,-352352.32509616,0.00024798,2]
[394213234,1763383842454,-155.189006,0.00024798,7]
[394213236,1763383842463,-151.0,0.00024798,7]
[394213238,1763383842473,-151.0,0.00024798,7]
[394213240,1763383842482,-151.0,0.00024798,7]
[394213241,1763383842491,-151.0,0.00024798,7]
[394213244,1763383842501,-151.0,0.00024798,7]
[394213246,1763383842511,-151.0,0.00024798,7]
[394213248,1763383842520,-151.0,0.00024798,7]
[394213250,1763383842530,-151.0,0.00024798,7]
[394213252,1763383842539,-151.0,0.00024798,7]
[394213254,1763383842549,-151.0,0.00024798,7]
[394213256,1763383842558,-151.0,0.00024798,7]
[394213258,1763383842567,-151.0,0.00024798,7]
[394213260,1763383842576,-151.0,0.00024798,7]
[394213262,1763383842586,-570.603194,0.00024798,7]
[394213264,1763383842595,-570.603194,0.00024798,7]
[394213266,1763383842605,-570.603194,0.00024798,7]
[394213268,1763383842615,-570.603194,0.00024798,7]
[394213270,1763383842624,-151.0,0.00024798,7]
[394213272,1763383842633,-151.0,0.00024798,7]
[394213274,1763383842642,-2315.228455,0.00024798,7]
[394213276,1763383842652,-2315.228455,0.00024798,7]
[394213278,1763383842661,-2315.228455,0.00024798,7]
[394213281,1763383842670,-345.07192,0.00024798,7]
[394213283,1763383842679,-2315.228455,0.00024798,7]
[394213285,1763383842688,-345.07192,0.00024798,7]
[394213286,1763383842698,-345.07192,0.00024798,7]
[394213288,1763383842707,-345.07192,0.00024798,7]
[394213290,1763383842716,-519.979803,0.00024798,2]
[394213292,1763383842725,-519.979803,0.00024798,2]
[394213295,1763383842734,-519.979803,0.00024798,2]
[394213296,1763383842744,-151.83738,0.00024798,7]
[394213298,1763383842753,-519.979803,0.00024798,2]
[394213300,1763383842762,-151.83738,0.00024798,7]
[394213303,1763383842772,-151.83738,0.00024798,7]
[394213305,1763383842782,-151.83738,0.00024798,7]
[394213306,1763383842791,-274.647791,0.00024798,7]
[394213308,1763383842800,-274.647791,0.00024798,7]
[394213310,1763383842811,-274.647791,0.00024798,7]
[394213312,1763383842820,-274.647791,0.00024798,7]
[394213314,1763383842831,-151.0,0.00024798,7]
[394213317,1763383842840,-151.0,0.00024798,7]
[394213319,1763383842850,-151.0,0.00024798,7]
[394213321,1763383842859,-151.0,0.00024798,7]
[394213323,1763383842869,-151.0,0.00024798,7]
[394213325,1763383842878,-151.0,0.00024798,7]
[394213327,1763383842887,-151.0,0.00024798,7]
[394213329,1763383842896,-10329.4056128,0.000248,2]
[394213331,1763383842905,-168.0,0.0002483,2]
[394213333,1763383842914,-168.0,0.00024844,2]
[394213335,1763383842925,-203.21851301,0.00024899,2]
[394213337,1763383842935,-484.69,0.000249,7]
[394213339,1763383842943,-28260.27,0.000249,7]
[394213341,1763383842952,-151.0,0.000249,7]
[394213343,1763383842962,-151.0,0.000249,7]
[394213345,1763383842971,-151.0,0.000249,7]
[394213347,1763383842980,-151.0,0.000249,7]
[394213349,1763383842990,-151.0,0.000249,7]
[394213351,1763383842998,-160.859447,0.000249,7]
[394213353,1763383843008,-151.0,0.000249,7]
[394213355,1763383843017,-151.0,0.000249,7]
[394213357,1763383843026,-151.0,0.000249,7]
[394213359,1763383843035,-151.0,0.000249,7]
[394213361,1763383843044,-151.0,0.000249,7]
[394213363,1763383843053,-151.0,0.000249,7]
[394213365,1763383843063,-570.603194,0.000249,7]
[394213366,1763383843073,-570.603194,0.000249,7]
[394213369,1763383843083,-570.603194,0.000249,7]
[394213370,1763383843092,-570.603194,0.000249,7]
[394213372,1763383843101,-348.067304,0.000249,2]
[394213375,1763383843111,-151.0,0.000249,7]
[394213376,1763383843121,-151.0,0.000249,7]
[394213379,1763383843130,-400.67432439,0.000249,7]
[394213381,1763383843140,-2315.228455,0.000249,7]
[394213383,1763383843149,-2315.228455,0.000249,7]
[394213384,1763383843159,-2315.228455,0.000249,7]
[394213386,1763383843172,-345.07192,0.000249,7]
[394213388,1763383843181,-2315.228455,0.000249,7]
[394213390,1763383843190,-345.07192,0.000249,7]
[394213392,1763383843200,-345.07192,0.000249,7]
[394213394,1763383843210,-345.07192,0.000249,7]
[394213397,1763383843220,-519.979803,0.000249,2]
[394213399,1763383843229,-519.979803,0.000249,2]
[394213401,1763383843241,-519.979803,0.000249,2]
[394213403,1763383843251,-151.83738,0.000249,7]
[394213405,1763383843260,-519.979803,0.000249,2]
[394213407,1763383843270,-151.83738,0.000249,7]
[394213409,1763383843279,-151.83738,0.000249,7]
[394213411,1763383843288,-151.83738,0.000249,7]
[394213413,1763383843297,-274.647791,0.000249,7]
[394213415,1763383843306,-274.647791,0.000249,7]
[394213417,1763383843315,-274.647791,0.000249,7]
[394213418,1763383843324,-274.647791,0.000249,7]
[394213421,1763383843333,-515000.33316576,0.000249,2]
[394214043,1763383976901,-500.0,0.00013734,2]
[394214044,1763383976921,-167.39594225,0.00013756,2]
[394214045,1763383981794,-310.15941068,0.00013756,2]
[394214046,1763383983254,-175.52271418,0.00013756,2]
[394214047,1763383985745,-300.0,0.00013756,2]
[394214048,1763383993613,714.31787514,0.00013618,2]
[394214049,1763384015742,899.74689078,0.00013618,2]
[394214050,1763384025456,410.46,0.00012329,2]
[394214051,1763384038946,899.74689078,0.00013618,2]
[394214052,1763384055493,5000.0,0.00013618,2]
[394214053,1763384063433,1986.1883433,0.00013618,2]
[394214055,1763384093519,709.487491,0.00013699,2]
[394214056,1763384116195,4199.5249328,0.0001281,2]
[394214057,1763384165540,185.42901564,0.00013655,2]
[394214058,1763384169431,795.830185,0.00013699,2]
[394214059,1763384184621,800.0,0.00015,3]
[394214060,1763384189740,7123.27338332,0.00013655,2]
[394214061,1763384196068,515.36048363,0.00016,4]
[394214062,1763384196092,319.63951637,0.00016,4]
[394214063,1763384217534,-201.97944501,0.00013754,2]
[394214064,1763384235481,893.05639454,0.000137,2]
[394214072,1763384397375,-158.11418997,0.00013654,2]
[394214073,1763384426848,-252.19094931,0.00013653,2]
[394214074,1763384428818,-590.63348671,0.00013653,2]
[394214075,1763384431854,-315.0943809,0.00013653,2]
[394214076,1763384434464,-863.53373798,0.00013653,2]
[394214077,1763384451250,1769.26160559,0.00013516,2]
[394214078,1763384501905,-356.36672913,0.00013653,2]
[394214079,1763384503927,-208.78620718,0.00013653,2]
[394214080,1763384507049,-291.21379282,0.00013653,2]
[394214081,1763384509296,-247.80905069,0.00013653,2]
[394214082,1763384511061,-303.20653177,0.00013653,2]
[394214083,1763384512931,-205.76501387,0.00013653,2]
[394214084,1763384515519,-223.81283861,0.00013653,2]
[394214085,1763384517967,-360.54902504,0.00013653,2]
[394214086,1763384622924,-186.89933711,0.00013653,2]
[394214087,1763384622946,-1.56624455,0.00013654,2]
[394214091,1763384820662,-183.16135037,0.00013652,2]
[394214092,1763384820685,-48.08192255,0.00013654,2]
[394214093,1763384820709,-1200.0,0.00013671,2]
[394214094,1763384820730,-300.0,0.00013672,2]
[394214095,1763384820752,-300.0,0.00013672,2]
[394214096,1763384820775,-300.0,0.00013672,2]
[394214097,1763384820800,-300.0,0.00013672,2]
[394214098,1763384820822,-7303.78525094,0.00013673,2]
[394214099,1763384820845,-235.19136557,0.00013748,2]
[394214100,1763384820869,-500.0,0.00013748,2]
[394214101,1763384820893,-169.69970325,0.00013748,2]
[394214102,1763384820918,-500.0,0.00013748,2]
[394214103,1763384820946,-500.0,0.00013748,2]
[394214104,1763384820971,-500.0,0.00013748,2]
[394214105,1763384820998,-500.0,0.00013748,2]
[394214106,1763384821022,-500.0,0.00013748,2]
[394214107,1763384821049,-500.0,0.00013748,2]
[394214108,1763384821072,-500.0,0.00013748,2]
[394214109,1763384821095,-500.0,0.00013748,2]
[394214110,1763384821119,-500.0,0.00013748,2]
[394214111,1763384821142,-500.0,0.00013748,2]
[394214112,1763384821166,-500.0,0.00013748,2]
[394214113,1763384821190,-500.0,0.00013748,2]
[394214114,1763384821213,-500.0,0.00013748,2]
[394214115,1763384821237,-500.0,0.00013748,2]
[394214116,1763384821260,-500.0,0.00013748,2]
[394214117,1763384821285,-500.0,0.00013748,2]
[394214118,1763384821309,-500.0,0.00013748,2]
[394214119,1763384821332,-500.0,0.00013748,2]
[394214120,1763384821354,-500.0,0.00013748,2]
[394214121,1763384821377,-500.0,0.00013748,2]
[394214122,1763384821400,-500.0,0.00013748,2]
[394214123,1763384821423,-500.0,0.00013748,2]
[394214124,1763384821462,-500.0,0.00013748,2]
[394214125,1763384821486,-500.0,0.00013748,2]
[394214126,1763384821509,-500.0,0.00013748,2]
[394214127,1763384821538,-500.0,0.00013748,2]
[394214128,1763384821562,-500.0,0.00013748,2]
[394214129,1763384821587,-500.0,0.00013748,2]
[394214130,1763384821617,-500.0,0.00013748,2]
[394214131,1763384821641,-500.0,0.00013748,2]
[394214132,1763384821666,-465.66414435,0.00013748,2]
[394214133,1763384821691,-500.0,0.00013748,2]
[394214134,1763384821714,-500.0,0.00013748,2]
[394214135,1763384821738,-500.0,0.00013748,2]
[394214136,1763384821762,-500.0,0.00013748,2]
[394214137,1763384821786,-500.0,0.00013748,2]
[394214138,1763384821810,-500.0,0.00013748,2]
[394214139,1763384821832,-500.0,0.00013748,2]
[394214140,1763384821855,-500.0,0.00013748,2]
[394214141,1763384821877,-500.0,0.00013748,2]
[394214142,1763384821899,-500.0,0.00013748,2]
[394214143,1763384821922,-500.0,0.00013748,2]
[394214144,1763384821945,-500.0,0.00013748,2]
[394214145,1763384821969,-500.0,0.00013748,2]
[394214146,1763384821993,-500.0,0.00013748,2]
[394214147,1763384822017,-500.0,0.00013748,2]
[394214148,1763384822047,-500.0,0.00013748,2]
[394214149,1763384822070,-500.0,0.00013748,2]
[394214150,1763384822175,-500.0,0.00013748,2]
[394214151,1763384822200,-500.0,0.00013748,2]
[394214152,1763384822225,-500.0,0.00013748,2]
[394214153,1763384822250,-500.0,0.00013748,2]
[394214154,1763384822274,-500.0,0.00013748,2]
[394214155,1763384822296,-500.0,0.00013748,2]
[394214156,1763384822319,-500.0,0.00013748,2]
[394214157,1763384822341,-500.0,0.00013748,2]
[394214158,1763384822364,-500.0,0.00013748,2]
[394214159,1763384822386,-530.66966088,0.00013748,2]
[394214160,1763384822410,-500.0,0.00013748,2]
[394214161,1763384822433,-500.0,0.00013748,2]
[394214162,1763384822458,-500.0,0.00013748,2]
[394214163,1763384822482,-500.0,0.00013748,2]
[394214164,1763384822506,-500.0,0.00013748,2]
[394214165,1763384822534,-500.0,0.00013748,2]
[394214166,1763384822558,-500.0,0.00013748,2]
[394214167,1763384822584,-500.0,0.00013748,2]
[394214168,1763384822609,-500.0,0.00013748,2]
[394214169,1763384822635,-500.0,0.00013748,2]
[394214170,1763384822659,-500.0,0.00013748,2]
[394214171,1763384822691,-190.53268374,0.00013748,2]
[394214172,1763384822729,-500.0,0.00013748,2]
[394214173,1763384822753,-500.0,0.00013748,2]
[394214174,1763384822777,-500.0,0.00013748,2]
[394214175,1763384822802,-500.0,0.00013748,2]
[394214176,1763384822827,-500.0,0.00013748,2]
[394214177,1763384822852,-500.0,0.00013748,2]
[394214178,1763384822876,-500.0,0.00013748,2]
[394214179,1763384822900,-500.0,0.00013748,2]
[394214180,1763384822924,-500.0,0.00013748,2]
[394214181,1763384822948,-500.0,0.00013748,2]
[394214182,1763384822973,-500.0,0.00013748,2]
[394214183,1763384822997,-500.0,0.00013748,2]
[394214184,1763384823026,-500.0,0.00013748,2]
[394214185,1763384823052,-500.0,0.00013748,2]
[394214186,1763384823077,-500.0,0.00013748,2]
[394214187,1763384823101,-500.0,0.00013748,2]
[394214188,1763384823127,-500.0,0.00013748,2]
[394214189,1763384823151,-500.0,0.00013748,2]
[394214190,1763384823175,-500.0,0.00013748,2]
[394214191,1763384823201,-777.66592006,0.00013748,2]
[394214192,1763384823227,-777.66592006,0.00013748,2]
[394214193,1763384823254,-777.66592006,0.00013748,2]
[394214194,1763384823284,-777.66592006,0.00013748,2]
[394214195,1763384823318,-777.66592006,0.00013748,2]
[394214196,1763384823347,-777.66592006,0.00013748,2]
[394214197,1763384823373,-777.66592006,0.00013748,2]
[394214198,1763384823401,-777.66592006,0.00013748,2]
[394214199,1763384823427,-777.66592006,0.00013748,2]
[394214200,1763384823455,-777.66592006,0.00013748,2]
[394214201,1763384823483,-777.66592006,0.00013748,2]
[394214202,1763384823516,-777.66592006,0.00013748,2]
[394214203,1763384823547,-777.66592006,0.00013748,2]
[394214204,1763384823576,-777.66592006,0.00013748,2]
[394214205,1763384823607,-777.66592006,0.00013748,2]
[394214206,1763384823635,-777.66592006,0.00013748,2]
[394214207,1763384823730,-777.66592006,0.00013748,2]
[394214208,1763384823759,-777.66592006,0.00013748,2]
[394214209,1763384823786,-777.66592006,0.00013748,2]
[394214210,1763384823812,-777.66592006,0.00013748,2]
[394214211,1763384823839,-777.66592006,0.00013748,2]
[394214212,1763384823864,-777.66592006,0.00013748,2]
[394214213,1763384823890,-777.66592006,0.00013748,2]
[394214214,1763384823916,-777.66592006,0.00013748,2]
[394214215,1763384823946,-777.66592006,0.00013748,2]
[394214216,1763384823974,-777.66592006,0.00013748,2]
[394214217,1763384824004,-777.66592006,0.00013748,2]
[394214218,1763384824031,-777.66592006,0.00013748,2]
[394214219,1763384824057,-777.66592006,0.00013748,2]
[394214220,1763384824082,-777.66592006,0.00013748,2]
[394214221,1763384824108,-777.66592006,0.00013748,2]
[394214222,1763384824133,-777.66592006,0.00013748,2]
[394214223,1763384824158,-777.66592006,0.00013748,2]
[394214224,1763384824184,-777.66592006,0.00013748,2]
[394214225,1763384824210,-777.66592006,0.00013748,2]
[394214226,1763384824235,-777.66592006,0.00013748,2]
[394214227,1763384824261,-777.66592006,0.00013748,2]
[394214228,1763384824287,-777.66592006,0.00013748,2]
[394214229,1763384824314,-777.66592006,0.00013748,2]
[394214230,1763384824340,-777.66592006,0.00013748,2]
[394214231,1763384824364,-777.66592006,0.00013748,2]
[394214232,1763384824390,-777.66592006,0.00013748,2]
[394214233,1763384824416,-777.66592006,0.00013748,2]
[394214234,1763384824441,-777.66592006,0.00013748,2]
[394214235,1763384824468,-777.66592006,0.00013748,2]
[394214236,1763384824493,-777.66592006,0.00013748,2]
[394214237,1763384824518,-777.66592006,0.00013748,2]